bitfinex/quotes_ETHUSD_20250810
["timestamp","ask_amount","ask_price","bid_price","bid_amount"]
[1754827684374,6.32714566,4187.7,4187.6,1e-08]
[1754827684556,7.51685496,4187.7,4187.6,1e-08]
[1754827687264,7.95655496,4187.7,4187.6,1e-08]
[1754827687665,7.51685496,4187.7,4187.6,1e-08]
[1754827687879,7.95655496,4187.7,4187.6,1e-08]
[1754827692103,11.95655496,4187.7,4187.6,1e-08]
[1754827694587,10.95505496,4187.7,4187.6,1e-08]
[1754827694911,6.95505496,4187.7,4187.6,1e-08]
[1754827696217,6.32214566,4187.7,4187.6,1e-08]
[1754827696377,3.06394566,4187.7,4187.6,1e-08]
[1754827696578,6.87794566,4187.7,4187.6,1e-08]
[1754827696784,3.06394566,4187.7,4187.6,1e-08]
[1754827697076,7.31764566,4187.7,4187.6,1e-08]
[1754827697313,8.33935393,4187.7,4187.6,1e-08]
[1754827699604,7.89965393,4187.7,4187.6,1e-08]
[1754827701730,46.62256784,4187.7,4187.6,1e-08]
[1754827701882,46.75523958,4187.7,4187.6,1e-08]
[1754827702081,0.55,4187.5,4187.1,1e-08]
[1754827702290,6.05743079,4187.2,4187.1,1e-08]
[1754827702483,40.73171644,4187.2,4187.1,1e-08]
[1754827702684,40.73171644,4187.2,4186.7,1e-08]
[1754827702685,5.93845896,4186.8,4186.7,1e-08]
[1754827702880,40.59927287,4186.8,4186.7,1e-08]
[1754827703105,43.92231355,4186.8,4186.7,1e-08]
[1754827703496,43.92191602,4186.8,4186.7,1e-08]
[1754827703699,47.92191602,4186.8,4186.7,1e-08]
[1754827708384,47.19169964,4186.8,4186.7,1e-08]
[1754827708819,43.19169964,4186.8,4186.7,1e-08]
[1754827710014,43.31073081,4186.8,4186.7,1e-08]
[1754827711425,38.67668192,4186.8,4186.7,1e-08]
[1754827711604,42.48468192,4186.8,4186.7,1e-08]
[1754827711989,43.04838192,4186.8,4186.7,1e-08]
[1754827712690,47.04838192,4186.8,4186.7,1e-08]
[1754827713722,46.48468192,4186.8,4186.7,1e-08]
[1754827713894,12.12668192,4186.8,4186.7,1e-08]
[1754827714091,13.49761007,4186.8,4186.7,1.00680001]
[1754827714813,10.49761007,4186.8,4186.7,1.00680001]
[1754827715008,6.69061007,4186.8,4186.7,1.00680001]
[1754827715224,10.49661007,4186.8,4186.7,1.00680001]
[1754827715403,6.49661007,4186.8,4186.7,1.00680001]
[1754827716324,2.69061007,4186.8,4186.7,1.00680001]
[1754827716624,6.49661007,4186.8,4186.7,1.00680001]
[1754827717042,2.69061007,4186.8,4186.7,1.00680001]
[1754827717324,4.10715111,4186.8,4186.7,1.00680001]
[1754827717506,6.49561007,4186.8,4186.7,1.00680001]
[1754827718093,2.69061007,4186.8,4186.7,1.00680001]
[1754827718294,6.49561007,4186.8,4186.7,1.00680001]
[1754827721821,6.49561007,4186.8,4186.7,0.46100001]
[1754827722637,6.49561007,4186.8,4186.7,1.00680001]
[1754827722818,6.49261007,4186.8,4186.7,1.00680001]
[1754827724244,4.10415111,4186.8,4186.7,1.00680001]
[1754827724532,4.10315111,4186.8,4186.7,1.00680001]
[1754827725149,3.9202,4186.8,4186.7,1.00680001]
[1754827725504,0.1192,4186.8,4186.7,1.00680001]
[1754827725739,3.9202,4186.8,4186.7,1.00680001]
[1754827726399,0.1192,4186.8,4186.7,1.00680001]
[1754827726604,3.9192,4186.8,4186.7,1.00680001]
[1754827727937,0.1192,4186.8,4186.7,1.00680001]
[1754827728517,3.9182,4186.8,4186.7,1.00680001]
[1754827729034,0.1192,4186.8,4186.7,0.46100001]
[1754827729199,3.799,4186.8,4186.7,1.00730001]
[1754827729398,3.799,4186.8,4186.7,1.34689372]
[1754827729594,0.1192,4187.0,4186.7,1.34689372]
[1754827729837,3.799,4186.9,4186.7,1e-08]
[1754827730000,2.50754697,4187.0,4186.8,1.0016]
[1754827730205,3.799,4186.9,4186.8,0.5463]
[1754827730425,6.18740192,4186.9,4186.8,0.5463]
[1754827730739,3.799,4186.9,4186.8,0.4553]
[1754827732036,6.18740192,4186.9,4186.8,0.4553]
[1754827733622,2.38845896,4186.8,4186.7,1e-08]
[1754827735222,0.17913012,4187.0,4186.7,0.45530001]
[1754827735426,3.797,4186.9,4186.7,0.45530001]
[1754827735625,6.18445896,4186.8,4186.7,1e-08]
[1754827736012,6.30365896,4186.8,4186.7,1e-08]
[1754827737233,6.30365896,4186.8,4186.7,0.45530001]
[1754827739148,6.30365896,4186.8,4186.7,1e-08]
[1754827741249,8.18615992,4186.8,4186.7,1e-08]
[1754827741953,8.73615992,4186.8,4186.7,1e-08]
[1754827744824,12.73615992,4186.8,4186.7,1e-08]
[1754827745763,16.466384,4186.8,4186.7,1e-08]
[1754827746936,12.670384,4186.8,4186.7,1e-08]
[1754827747164,16.461384,4186.8,4186.7,1e-08]
[1754827747473,12.461384,4186.8,4186.7,1e-08]
[1754827748483,10.898084,4186.8,4186.7,1e-08]
[1754827748652,10.16785992,4186.8,4186.7,1e-08]
[1754827749459,10.71065992,4186.8,4186.7,1e-08]
[1754827751872,10.16585992,4186.8,4186.7,1e-08]
[1754827752278,10.11585992,4186.8,4186.7,1e-08]
[1754827754074,10.11585992,4186.8,4186.7,0.45530001]
[1754827754754,10.11585992,4186.8,4186.7,1e-08]
[1754827756877,11.12915992,4186.8,4186.7,1e-08]
[1754827757252,11.89998231,4186.8,4186.7,1e-08]
[1754827757454,11.67915992,4186.8,4186.7,1e-08]
[1754827757761,11.89998093,4186.8,4186.7,1e-08]
[1754827758083,15.89998093,4186.8,4186.7,1e-08]
[1754827758290,15.67915992,4186.8,4186.7,1e-08]
[1754827760496,10.86965992,4186.8,4186.7,1e-08]
[1754827760697,13.24265896,4186.8,4186.7,1e-08]
[1754827762590,9.24265896,4186.8,4186.7,1e-08]
[1754827764612,2.93874423,4186.3,4185.8,1e-08]
[1754827764766,2.38982888,4184.4,4184.1,0.64]
[1754827764966,6.17282888,4184.4,4184.1,0.64]
[1754827765184,6.17282888,4184.4,4184.1,0.2]
[1754827765392,6.71062888,4184.4,4184.1,0.2]
[1754827765613,2.92762888,4184.4,4184.1,0.2]
[1754827765790,7.28512677,4184.4,4184.1,0.2]
[1754827765974,7.83512677,4184.4,4184.1,0.2]
[1754827766175,11.26272677,4184.4,4184.1,0.2]
[1754827766996,15.26272677,4184.4,4184.1,0.2]
[1754827768500,15.26272677,4184.4,4184.3,1e-08]
[1754827768702,11.26272677,4184.4,4184.3,1e-08]
[1754827769776,0.55,4184.2,4183.8,1e-08]
[1754827770108,0.55,4184.2,4183.3,0.001]
[1754827770109,5.94040015,4183.4,4183.3,0.001]
[1754827770408,9.72240015,4183.4,4183.3,0.001]
[1754827770815,5.94057158,4183.1,4183.0,1e-08]
[1754827771018,9.72157158,4183.1,4183.0,1e-08]
[1754827771184,10.79026874,4183.1,4183.0,1e-08]
[1754827771383,11.32806874,4183.1,4183.0,1e-08]
[1754827771795,15.32806874,4183.1,4183.0,1e-08]
[1754827773409,2.39097169,4182.4,4182.3,0.001]
[1754827773610,6.17297169,4182.4,4182.3,0.001]
[1754827773779,6.17297169,4182.4,4182.3,0.441]
[1754827774476,7.02935805,4182.4,4182.3,0.001]
[1754827774690,7.14855805,4182.4,4182.3,0.001]
[1754827775684,7.14855805,4182.4,4182.3,0.441]
[1754827775885,6.29217169,4182.4,4182.3,0.441]
[1754827776201,2.51017169,4182.4,4182.3,0.441]
[1754827776388,3.9002,4182.4,4182.3,0.9992]
[1754827776990,6.39064058,4183.0,4182.3,0.9992]
[1754827777206,0.1192,4182.8,4182.4,0.9982]
[1754827777407,0.1192,4182.8,4182.3,0.001]
[1754827777613,0.1192,4182.8,4182.5,0.9982]
[1754827777808,3.781,4182.7,4182.6,0.9982]
[1754827778115,6.29101992,4182.7,4182.6,0.44]
[1754827778298,3.78,4182.7,4182.6,0.9982]
[1754827779860,6.1708002,4182.7,4182.6,0.9982]
[1754827780814,3.78,4182.7,4182.6,0.9982]
[1754827783798,0.002,4184.0,4182.6,1.33720847]
[1754827784012,0.002,4184.0,4182.7,0.9982]
[1754827784013,0.1192,4183.2,4182.7,0.9982]
[1754827784260,3.8982,4183.2,4182.7,2.39077674]
[1754827784398,3.8982,4183.2,4182.8,0.9982]
[1754827784592,3.8982,4183.2,4182.9,0.9982]
[1754827784892,3.8982,4183.2,4183.0,0.9982]
[1754827785099,3.8982,4183.2,4183.1,0.44]
[1754827785517,6.28871443,4183.2,4183.1,0.44]
[1754827785728,3.8982,4183.2,4183.1,0.44]
[1754827786028,0.1192,4183.2,4183.1,0.44]
[1754827786329,3.778,4183.2,4183.1,1.1174]
[1754827787936,3.777,4183.4,4183.1,1.1174]
[1754827788097,3.777,4183.4,4183.2,0.9656]
[1754827788301,3.777,4183.4,4183.1,0.1192]
[1754827788302,3.777,4183.4,4183.3,0.9656]
[1754827789307,3.777,4183.4,4183.3,0.437]
[1754827791014,3.777,4183.4,4183.3,0.9656]
[1754827791736,3.8952,4183.7,4183.3,1.31313141]
[1754827791895,3.776,4183.7,4183.4,2.39039614]
[1754827792101,3.776,4183.7,4183.5,0.437]
[1754827792607,3.776,4183.7,4183.6,0.437]
[1754827794122,0.002,4183.9,4183.6,0.437]
[1754827794326,0.002,4183.9,4183.7,0.5286]
[1754827794794,0.002,4183.9,4183.8,0.437]
[1754827795001,0.002,4183.9,4183.2,0.437]
[1754827795194,2.39027517,4183.7,4183.2,0.437]
[1754827795428,0.5091,4183.7,4183.2,0.437]
[1754827795802,2.89933912,4183.7,4183.2,0.437]
[1754827796050,3.774,4183.8,4183.2,0.437]
[1754827796198,3.774,4183.8,4182.8,3.0]
[1754827796199,2.39037436,4183.5,4182.8,3.0]
[1754827796399,3.774,4183.4,4182.8,3.0]
[1754827797044,3.774,4183.4,4182.7,2.39078734]
[1754827797203,3.774,4183.4,4182.9,0.437]
[1754827797404,6.16440895,4183.4,4182.9,0.437]
[1754827797636,2.39047039,4183.3,4182.6,5.39081269]
[1754827797803,2.39047039,4183.3,4182.9,0.437]
[1754827799647,3.774,4183.4,4182.7,5.39079027]
[1754827799959,3.774,4183.4,4183.0,0.437]
[1754827800163,3.774,4183.4,4183.1,0.437]
[1754827801137,3.774,4183.4,4183.2,0.437]
[1754827801830,3.774,4183.4,4183.3,0.437]
[1754827802251,2.3921217,4183.9,4183.3,0.437]
[1754827802252,0.002,4183.9,4183.3,0.9656]
[1754827802457,3.772,4183.7,4183.3,3.25465917]
[1754827802644,3.772,4183.7,4183.4,2.82738991]
[1754827802959,0.002,4183.9,4183.5,3.35592604]
[1754827803176,0.002,4183.9,4183.3,0.33561695]
[1754827803319,2.39018326,4183.8,4183.3,0.437]
[1754827803524,2.89928326,4183.8,4183.3,0.437]
[1754827804326,3.771,4183.7,4183.4,0.1192]
[1754827804527,0.1192,4183.5,4182.9,0.5562]
[1754827804756,3.8902,4183.5,4182.9,2.94688313]
[1754827805143,3.771,4183.5,4182.9,0.1192]
[1754827805343,2.39049846,4183.3,4182.9,0.1192]
[1754827805530,1.0824,4183.4,4182.9,0.1192]
[1754827805739,0.5091,4183.3,4182.9,0.1192]
[1754827805949,0.1192,4183.4,4182.9,0.5562]
[1754827806126,0.1192,4183.4,4182.9,2.94687687]
[1754827806327,3.771,4183.5,4183.0,0.9656]
[1754827806524,3.771,4183.5,4183.1,0.437]
[1754827807065,3.771,4183.5,4183.2,0.437]
[1754827808071,3.771,4183.5,4183.3,0.437]
[1754827808863,3.771,4183.5,4183.4,0.437]
[1754827809530,3.771,4183.5,4183.2,0.1192]
[1754827809731,3.771,4183.5,4183.4,0.437]
[1754827810165,3.771,4183.5,4183.4,2.82740015]
[1754827810470,3.771,4183.5,4183.4,3.35600015]
[1754827810642,3.771,4183.5,4183.4,0.437]
[1754827810841,0.002,4183.9,4183.5,2.39031872]
[1754827811189,3.771,4183.9,4183.7,0.1192]
[1754827811880,3.771,4183.9,4183.8,0.437]
[1754827812844,3.771,4183.9,4183.8,3.35577161]
[1754827813381,3.771,4183.9,4183.8,2.82717161]
[1754827813677,3.771,4183.9,4183.8,0.437]
[1754827813884,3.771,4183.9,4183.7,2.50942476]
[1754827813885,3.771,4183.9,4183.7,0.1192]
[1754827814179,0.9632,4183.8,4183.4,3.0]
[1754827814379,0.4541,4183.8,4183.4,3.0]
[1754827814681,0.5091,4183.7,4183.4,3.0]
[1754827814864,0.5091,4183.6,4183.4,3.0]
[1754827815066,0.5091,4183.5,4183.0,0.717739]
[1754827815266,0.5091,4183.8,4183.2,3.0]
[1754827815578,3.8902,4183.9,4183.4,2.39039231]
[1754827815751,3.8902,4183.9,4183.4,2.82739231]
[1754827815949,3.8902,4183.9,4183.1,0.1192]
[1754827815950,0.5091,4183.8,4183.1,0.1192]
[1754827816479,0.002,4183.7,4183.3,2.39040787]
[1754827816687,0.002,4183.7,4183.4,2.82735979]
[1754827817267,0.002,4183.7,4183.5,2.3903427]
[1754827817578,0.002,4183.7,4183.5,0.4374]
[1754827817781,0.002,4183.7,4183.6,2.50948587]
[1754827817982,0.002,4183.7,4183.6,2.94688587]
[1754827822350,0.002,4183.7,4183.6,3.47208587]
[1754827822551,0.002,4183.7,4183.6,6.55703628]
[1754827822767,0.002,4183.7,4183.6,7.60833343]
[1754827823282,0.002,4184.0,4183.9,5.94011448]
[1754827823283,1e-08,4184.0,4183.9,5.94011448]
[1754827823488,1e-08,4184.0,4183.9,9.70411448]
[1754827823656,1e-08,4184.0,4183.9,10.78591448]
[1754827823858,1e-08,4184.0,4183.9,11.19356692]
[1754827825070,1e-08,4184.0,4183.9,6.35436692]
[1754827825279,1e-08,4184.0,4183.9,10.11836692]
[1754827825797,1e-08,4184.0,4183.9,9.27231448]
[1754827826092,1e-08,4184.0,4183.9,9.70971448]
[1754827827988,1e-08,4184.0,4183.9,9.27131448]
[1754827828389,1e-08,4184.0,4183.9,9.70871448]
[1754827829157,1e-08,4184.0,4183.9,9.27131448]
[1754827830069,1e-08,4184.0,4183.9,3.8812]
[1754827830379,1e-08,4184.0,4183.9,9.27131448]
[1754827831391,1e-08,4184.0,4183.9,9.70871448]
[1754827831800,1e-08,4184.0,4183.9,10.23391448]
[1754827832116,1e-08,4184.0,4183.9,10.78391448]
[1754827832770,1e-08,4184.0,4183.9,7.02191448]
[1754827832989,1e-08,4184.0,4183.9,10.25671448]
[1754827835594,1e-08,4184.0,4183.9,10.78191448]
[1754827836606,1e-08,4184.0,4183.9,5.94671448]
[1754827836906,1e-08,4184.0,4183.9,9.70571448]
[1754827839414,1e-08,4184.0,4183.9,5.94671448]
[1754827839616,1e-08,4184.0,4183.9,5.50931448]
[1754827839818,1e-08,4184.0,4183.9,9.26731448]
[1754827840124,1e-08,4184.0,4183.9,10.22991448]
[1754827840784,1e-08,4184.0,4183.9,10.66071448]
[1754827843583,1e-08,4184.0,4183.9,10.65971448]
[1754827844387,1e-08,4184.2,4184.0,5.94005736]
[1754827844608,1e-08,4184.2,4184.1,9.14700023]
[1754827844801,1e-08,4184.2,4184.1,9.58440023]
[1754827845001,1e-08,4184.2,4184.1,9.69700023]
[1754827845224,1e-08,4184.2,4184.1,10.13440023]
[1754827845631,1e-08,4184.2,4184.1,6.37740023]
[1754827845928,1e-08,4184.2,4184.1,10.13340023]
[1754827846813,1e-08,4184.2,4184.1,9.69600023]
[1754827848413,1e-08,4184.2,4184.1,5.94000023]
[1754827848805,1e-08,4184.2,4184.1,9.69500023]
[1754827849013,1e-08,4184.2,4184.1,5.94000023]
[1754827849195,1e-08,4184.2,4184.1,9.69500023]
[1754827849524,1e-08,4184.2,4184.1,5.39000023]
[1754827849724,0.50780001,4184.2,4184.1,9.14500023]
[1754827850227,1e-08,4184.2,4184.1,9.14500023]
[1754827850787,1e-08,4184.2,4184.1,9.26420023]
[1754827851624,0.50780001,4184.2,4184.1,9.26420023]
[1754827851799,0.50780001,4184.2,4184.1,3.1192]
[1754827852140,0.93650001,4184.2,4184.1,3.1192]
[1754827852338,0.93650001,4184.2,4184.1,0.1192]
[1754827852539,1.5085218,4184.2,4184.1,0.1192]
[1754827852738,3.89846491,4184.2,4184.1,0.1192]
[1754827853103,1.5085218,4184.2,4184.1,0.1192]
[1754827853500,0.93650001,4184.2,4184.1,0.1192]
[1754827854334,0.93650001,4184.2,4184.1,2.50920023]
[1754827854808,0.93650001,4184.2,4184.1,0.1192]
[1754827855441,0.93650001,4184.2,4184.1,6.26220023]
[1754827855442,1e-08,4184.2,4184.1,6.26220023]
[1754827855655,1e-08,4184.2,4184.1,9.26220023]
[1754827855809,1e-08,4184.2,4184.1,9.72180023]
[1754827857217,1e-08,4184.2,4184.1,10.27180023]
[1754827857421,1e-08,4184.2,4184.1,10.80310023]
[1754827857617,0.002,4184.5,4184.4,2.38982888]
[1754827857821,0.002,4184.5,4184.4,9.16672716]
[1754827858022,0.002,4184.5,4184.4,10.25292888]
[1754827858611,0.002,4184.5,4184.4,10.80292888]
[1754827858961,1e-08,4184.9,4184.8,5.93960045]
[1754827859253,1e-08,4185.3,4185.2,2.93937207]
[1754827859413,1e-08,4185.3,4185.2,7.40450928]
[1754827859613,1e-08,4185.3,4185.2,7.86410928]
[1754827859840,1e-08,4185.5,4185.4,2.93925789]
[1754827860154,1e-08,4185.5,4185.4,9.69125789]
[1754827860450,1e-08,4185.5,4185.4,10.15085789]
[1754827860652,1e-08,4185.5,4185.4,10.55082068]
[1754827861824,1e-08,4185.5,4185.4,6.79882068]
[1754827862041,1e-08,4185.5,4185.4,10.54982068]
[1754827862642,1e-08,4185.5,4185.4,6.79882068]
[1754827862830,1e-08,4185.5,4185.4,10.54982068]
[1754827863242,1e-08,4185.5,4185.4,11.08112068]
[1754827864516,1e-08,4185.5,4185.4,10.54982068]
[1754827864724,1e-08,4185.5,4185.4,6.33922068]
[1754827865060,1e-08,4185.5,4185.4,10.08922068]
[1754827865359,0.50780001,4185.5,4185.4,9.13925789]
[1754827866121,1e-08,4185.5,4185.4,9.13925789]
[1754827866653,1e-08,4185.5,4185.4,9.59885789]
[1754827867651,1e-08,4185.5,4185.4,10.26805789]
[1754827868730,1e-08,4185.5,4185.4,9.80845789]
[1754827870057,1e-08,4185.5,4185.4,6.05845789]
[1754827870246,1e-08,4185.5,4185.4,10.26705789]
[1754827871160,1e-08,4185.5,4185.4,10.79835789]
[1754827872558,1e-08,4185.5,4185.4,10.26705789]
[1754827873766,0.5098,4186.4,4186.3,2.38874423]
[1754827873767,0.34816411,4186.4,4186.3,2.38874423]
[1754827873923,0.34816411,4186.4,4186.3,6.13574423]
[1754827874125,0.34816411,4186.4,4186.3,6.25494423]
[1754827874961,0.34816411,4186.4,4186.3,6.13574423]
[1754827875742,0.34816411,4186.4,4186.3,2.38874423]
[1754827876070,0.34816411,4186.4,4186.3,6.13574423]
[1754827880664,0.35016411,4186.4,4186.3,6.13574423]
[1754827882476,0.002,4186.4,4186.3,6.13574423]
[1754827883145,0.002,4186.4,4186.3,10.53820062]
[1754827883347,0.002,4186.4,4186.3,5.38874423]
[1754827883752,0.5212,4186.4,4186.3,5.38874423]
[1754827883953,0.5212,4186.4,4186.3,6.13274423]
[1754827884158,0.9753,4186.4,4186.3,6.13274423]
[1754827884868,0.9753,4186.4,4186.3,6.25194423]
[1754827886482,0.9753,4186.4,4186.3,0.1192]
[1754827886651,0.9753,4186.4,4186.1,3.744]
[1754827886652,1.31168476,4186.4,4186.1,3.744]
[1754827886982,0.9733,4186.3,4186.0,3.743]
[1754827887193,0.9733,4186.2,4186.0,3.743]
[1754827887397,0.33838476,4186.4,4186.0,3.743]
[1754827887690,0.9733,4186.1,4186.0,3.743]
[1754827888252,1.10446848,4186.1,4185.3,0.001]
[1754827888453,1.0925,4186.0,4185.6,2.38912095]
[1754827888679,0.9733,4185.9,4185.7,3.743]
[1754827888884,0.1192,4186.0,4185.8,3.743]
[1754827889453,0.9733,4185.9,4185.8,3.743]
[1754827890184,0.9733,4185.9,4185.7,6.13207587]
[1754827890360,0.9733,4185.8,4185.4,3.8612]
[1754827890562,0.9733,4185.8,4185.5,3.742]
[1754827890563,0.9733,4185.7,4185.5,3.742]
[1754827890762,0.9733,4185.6,4185.5,3.742]
[1754827890970,0.9733,4185.6,4185.5,6.13119855]
[1754827892296,0.9733,4185.6,4185.5,3.742]
[1754827893030,0.9733,4185.6,4185.5,6.13120081]
[1754827893174,0.5192,4185.6,4185.5,6.13120081]
[1754827893370,2.38881604,4186.2,4185.5,6.13120081]
[1754827893371,0.5212,4186.4,4185.6,3.0]
[1754827893571,0.002,4186.4,4185.8,3.0]
[1754827893870,0.5212,4186.4,4186.1,0.1192]
[1754827894070,0.5192,4186.3,4186.1,2.50804026]
[1754827894282,0.9733,4186.2,4186.1,2.50804026]
[1754827894480,0.5192,4186.2,4186.1,2.50804026]
[1754827894805,0.002,4186.4,4186.3,2.38874423]
[1754827894985,0.002,4186.4,4186.3,6.13074423]
[1754827895301,0.002,4186.4,4186.3,6.56494423]
[1754827895805,0.002,4186.4,4186.3,7.08494423]
[1754827897990,0.002,4186.4,4186.3,6.56494423]
[1754827898191,0.002,4186.4,4186.3,7.08494423]
[1754827898398,0.002,4186.4,4186.3,10.63494423]
[1754827899724,0.002,4186.4,4186.3,5.38874423]
[1754827900047,0.002,4186.4,4186.3,9.12874423]
[1754827901221,0.002,4186.4,4186.3,9.56294423]
[1754827902304,0.002,4186.4,4186.3,5.38874423]
[1754827902484,0.002,4186.4,4186.3,9.12774423]
[1754827904487,0.002,4186.4,4186.3,9.56194423]
[1754827904692,0.002,4186.4,4186.3,9.68114423]
[1754827905509,0.002,4186.4,4186.3,9.24694423]
[1754827905823,0.002,4186.4,4186.3,9.24594423]
[1754827906788,0.002,4186.4,4186.3,5.50794423]
[1754827907007,0.002,4186.4,4186.3,9.24594423]
[1754827909636,0.002,4186.4,4186.3,6.24594423]
[1754827909637,0.4996,4186.4,4186.3,6.24594423]
[1754827909841,0.4996,4186.4,4186.3,0.1192]
[1754827909995,0.9429,4186.4,4186.1,3.8562]
[1754827910333,0.4433,4186.3,4186.1,2.50805206]
[1754827910529,0.002,4186.4,4186.1,2.50805206]
[1754827910734,0.9409,4186.2,4186.1,2.50805206]
[1754827911241,0.4976,4186.2,4186.1,2.50805206]
[1754827911646,0.4976,4186.2,4186.1,2.50805836]
[1754827912211,0.4976,4186.2,4186.1,0.1192]
[1754827912738,0.9409,4186.2,4186.1,0.1192]
[1754827913038,0.9409,4186.2,4185.5,0.001]
[1754827913223,0.002,4186.4,4185.5,0.001]
[1754827913425,0.9409,4186.1,4185.5,0.001]
[1754827913627,0.9409,4186.0,4185.5,0.001]
[1754827913807,0.4976,4185.9,4185.5,2.3902008]
[1754827914011,0.1192,4185.8,4185.5,0.001]
[1754827914344,0.6168,4185.8,4185.5,2.39018351]
[1754827914537,0.1192,4185.8,4185.5,2.39018351]
[1754827915145,0.6168,4185.8,4185.5,2.39018351]
[1754827915440,0.6168,4185.8,4185.5,0.001]
[1754827915938,0.6168,4185.8,4185.5,2.39018557]
[1754827916332,0.6168,4185.8,4185.6,2.389135]
[1754827916507,0.1192,4185.8,4185.6,2.389135]
[1754827916708,0.6168,4185.8,4185.6,2.389135]
[1754827917024,0.1192,4186.1,4185.7,2.38908665]
[1754827917343,0.961879,4186.1,4185.6,2.38913487]
[1754827917732,0.464279,4186.1,4185.6,2.38913487]
[1754827917932,0.4976,4186.0,4185.6,2.38913487]
[1754827918109,0.464279,4186.1,4185.5,0.1202]
[1754827918313,0.9409,4185.9,4185.5,0.1202]
[1754827918629,0.9409,4185.8,4185.5,0.1202]
[1754827919207,0.4976,4185.7,4185.5,0.1202]
[1754827920145,0.4433,4185.8,4185.5,0.1202]
[1754827920446,0.4976,4185.6,4185.5,0.1202]
[1754827920852,0.4976,4186.0,4185.5,2.50940055]
[1754827921010,0.1192,4186.1,4185.5,2.50940055]
[1754827921216,0.4976,4185.9,4185.5,2.50940055]
[1754827921745,0.4976,4185.9,4185.5,2.50938428]
[1754827922146,0.1192,4186.1,4185.6,2.3891209]
[1754827922359,0.1192,4186.1,4185.7,2.38907113]
[1754827922604,0.55,4185.5,4184.6,0.001]
[1754827922761,2.39000023,4184.1,4183.2,0.001]
[1754827922915,2.39045729,4183.3,4183.2,0.001]
[1754827923116,3.25375198,4183.3,4183.2,0.001]
[1754827923318,8.05906466,4183.3,4183.2,0.001]
[1754827923518,7.19576997,4183.3,4183.2,0.001]
[1754827923717,8.06487057,4183.3,4183.2,0.001]
[1754827923962,5.94068588,4182.9,4182.8,1e-08]
[1754827924125,10.54145314,4182.9,4182.8,1e-08]
[1754827924323,12.86965133,4182.9,4182.8,1e-08]
[1754827924643,12.00388407,4182.9,4182.8,1e-08]
[1754827925631,46.00388407,4182.9,4182.8,1e-08]
[1754827927622,42.00388407,4182.9,4182.8,1e-08]
[1754827930666,46.18544536,4182.9,4182.8,1e-08]
[1754827931798,46.30484332,4182.9,4182.8,1e-08]
[1754827932359,11.57654332,4182.9,4182.8,1e-08]
[1754827932559,15.31454332,4182.9,4182.8,1e-08]
[1754827932854,15.26434536,4182.9,4182.8,1e-08]
[1754827933281,14.76574536,4182.9,4182.8,1e-08]
[1754827933686,15.26334536,4182.9,4182.8,1e-08]
[1754827933892,46.25664536,4182.9,4182.8,1e-08]
[1754827934303,43.91595948,4182.9,4181.9,0.001]
[1754827934495,5.94120038,4182.0,4181.9,0.001]
[1754827934816,9.79840038,4182.0,4181.9,0.001]
[1754827935022,40.73930038,4182.0,4181.9,0.001]
[1754827935579,39.51040038,4182.0,4181.9,0.001]
[1754827935798,13.24840038,4182.0,4181.9,0.001]
[1754827935978,14.86292287,4182.0,4181.9,0.001]
[1754827936179,15.41292287,4182.0,4181.9,0.001]
[1754827936388,16.35382287,4182.0,4181.9,0.001]
[1754827936996,15.41292287,4182.0,4181.9,0.001]
[1754827937309,15.91052287,4182.0,4181.9,0.001]
[1754827937673,16.34952287,4182.0,4181.9,0.001]
[1754827937891,15.91052287,4182.0,4181.9,0.001]
[1754827938173,16.34952287,4182.0,4181.9,0.001]
[1754827938585,46.84966084,4182.0,4181.9,0.001]
[1754827939970,46.84966084,4182.0,4181.9,1e-08]
[1754827940211,2.94142911,4181.6,4181.5,1e-08]
[1754827940425,42.23277202,4181.6,4181.5,1e-08]
[1754827940712,43.64377574,4181.6,4181.5,1e-08]
[1754827941279,44.2690304,4181.6,4181.5,1e-08]
[1754827941488,47.20477574,4181.6,4181.5,1e-08]
[1754827941998,50.64377574,4181.6,4181.5,1e-08]
[1754827942415,50.52457574,4181.6,4181.5,1e-08]
[1754827942821,51.37902736,4181.6,4181.5,1e-08]
[1754827943421,50.52457574,4181.6,4181.5,1e-08]
[1754827944001,50.74190486,4181.6,4181.5,1e-08]
[1754827944392,52.01397482,4181.6,4181.5,1e-08]
[1754827944590,52.48837482,4181.6,4181.5,1e-08]
[1754827945094,52.49649406,4181.6,4181.5,1e-08]
[1754827945303,51.2244241,4181.6,4181.5,1e-08]
[1754827945902,51.53589859,4181.6,4181.5,1e-08]
[1754827946222,2.94205836,4180.5,4180.4,0.1]
[1754827946412,40.18226208,4180.5,4180.4,0.1]
[1754827946722,5.89226208,4180.5,4180.4,0.1]
[1754827946890,11.52754961,4180.5,4180.4,0.1]
[1754827947422,42.20822813,4180.5,4180.4,0.1]
[1754827947720,12.78890681,4180.5,4180.4,0.5744]
[1754827947920,10.47186613,4180.5,4180.4,0.5744]
[1754827948096,9.63626208,4180.5,4180.4,0.5744]
[1754827948296,9.85434442,4180.5,4180.4,0.1]
[1754827948697,40.32614442,4180.5,4180.4,0.1]
[1754827948926,40.87614442,4180.5,4180.4,0.1]
[1754827949131,43.1931851,4180.5,4180.4,0.1]
[1754827949428,43.1931851,4180.5,4180.4,0.5744]
[1754827949429,12.1703851,4180.5,4180.4,0.5744]
[1754827949730,12.7203851,4180.5,4180.4,0.1]
[1754827950424,12.1723851,4180.5,4180.4,0.5744]
[1754827950621,6.78032674,4180.5,4180.4,1.0526]
[1754827950820,0.71828606,4180.5,4180.4,1.0526]
[1754827951019,8.24420372,4180.5,4180.4,1.0526]
[1754827951334,10.85459538,4180.5,4180.4,0.5744]
[1754827951717,8.46253702,4180.5,4180.4,0.5744]
[1754827951918,8.46253702,4180.5,4180.4,1.0526]